Cogmind - Beta 12 @@@ ROGUE MODE // 2023.11.02 @ 22:35:58 Player: FrostySpirit Result: Destroyed by G-47 Trooper with Particle Gun Performance ------------- Evolutions (1) 500 Regions Visited (3) 600 Robots Destroyed (0) 0 Value Destroyed (0) 0 Prototype IDs (4) 80 Alien Tech Used (0) 0 Bonus (200) 200 TOTAL SCORE: 1380 Bonus ------- Pacifist 200 Cogmind --------- Core Integrity 0/400 Matter 115/300 Energy 201/280 System Corruption 0% Temperature Cool (9) Movement Core (150) Ox2 Location -9/Storage Parts ------- > --- POWER (1) -------- Cooled Ion Engine > --- PROPULSION (4) --- (None) > --- UTILITY (2) ------ (None) > --- WEAPON (2) ------- (None) > --- INVENTORY (5) ---- Heavy Ion Engine Compact Wheel Assault Rifle Light Cannon Peak State ------------ > --- POWER ------------ Cooled Ion Engine > --- PROPULSION ------- Aluminum Leg > --- UTILITY ---------- Small Storage Unit > --- WEAPON ----------- Light Cannon > --- INVENTORY -------- Light Ion Engine Heavy Ion Engine Light Treads Light Treads Compact Wheel Assault Rifle Light Cannon Rocket Launcher [Rating: 7] Favorites ----------- Power Ion Engine Engine Ion Engine Propulsion Aluminum Leg Leg Aluminum Leg Wheel Compact Wheel Utility Small Storage Unit Storage Small Storage Unit Weapon Small Laser Energy Gun Small Laser Ballistic Cannon Light Cannon Build | -11 -10 -9 -9 ------- Run | Jun Mat Mat Sto Slots Evolved 2 | . . 2 . Power . | . . . . Propulsion 2 | . . 2 . Utility . | . . . . Weapon . | . . . . Parts Attached 12 | 7 . . 5 Power 5 | 1 . . 4 Engine 5 | 1 . . 4 Core . | . . . . Reactor . | . . . . Propulsion 3 | 3 . . . Treads . | . . . . Leg 2 | 2 . . . Wheel 1 | 1 . . . Hover . | . . . . Flight . | . . . . Utility 1 | 1 . . . Device . | . . . . Storage 1 | 1 . . . Processor . | . . . . Hackware . | . . . . Protection . | . . . . Artifact . | . . . . Weapon 3 | 2 . . 1 Energy Gun 2 | 2 . . . Energy Cannon . | . . . . Ballistic Gun . | . . . . Ballistic Cannon 1 | . . . 1 Launcher . | . . . . Special Weapon . | . . . . Impact Weapon . | . . . . Slashing Weapon . | . . . . Piercing Weapon . | . . . . Special Melee Weapon . | . . . . Unidentified Prototypes 2 | . . . 2 Parts Lost 6 | . 1 3 2 Power 2 | . . 1 1 Propulsion 2 | . . 1 1 Utility . | . . . . Weapon 2 | . 1 1 . Highest Loss Streak 3 | . 1 3 2 To Critical Strikes . | . . . . Average Slot Usage (%) 60 | . 84 47 28 Engine 10 | . 14 9 3 Leg 21 | . 28 19 10 Storage 12 | . 14 11 10 Energy Gun 15 | . 27 7 . Ballistic Cannon 1 | . . . 4 Naked Turns 8 | . . . 8 Heaviest Build 16 | 12 12 11 16 Greatest Support 20 | 20 20 20 10 Greatest Overweight (x) 3 | 3 . . 2 Average Overweight (x) . | . . . . Largest Inventory Capacity 8 | 8 8 8 8 Average Capacity 7 | 7 8 8 7 Most Carried 8 | 5 8 8 8 Average Carried 6 | 2 6 8 7 Final Capacity 8 | 8 8 8 5 Final Carried 8 | 5 8 8 4 Class Distribution -------------------- 100% | Mutant Dominant Class ---------------- Mutant | -10/Materials Mutant | -9/Materials Mutant | -9/Storage Resources | -11 -10 -9 -9 ----------- Run | Jun Mat Mat Sto Matter Collected 83 | 83 . . . Remotely . | . . . . Salvage Created . | . . . . Parts . | . . . . Haulers Intercepted . | . . . . Recyclers Shooed . | . . . . Parts Field Recycled . | . . . . Retrieved Matter . | . . . . Parts Self-Destructed . | . . . . Prevented . | . . . . Kills | -11 -10 -9 -9 ------- Run | Jun Mat Mat Sto Combat Hostiles Destroyed . | . . . . Classes Destroyed . | . . . . Best Kill Streak . | . . . . Combat Bots Only . | . . . . Max Kills in Single Turn . | . . . . Gunslinging . | . . . . Exploded . | . . . . Melee . | . . . . Uniques/NPCs Destroyed . | . . . . Combat | -11 -10 -9 -9 -------- Run | Jun Mat Mat Sto Damage Taken 1051 | . 271 436 344 Core 473 | . 68 192 213 Absorbed by Shields . | . . . . Core Remaining (%) 86 | 100 72 . . Volleys Fired 1 | . 1 . . Largest 2 | . 2 . . Hottest 80 | . 80 . . Shots Fired 2 | . 2 . . Gun 2 | . 2 . . Cannon . | . . . . Launcher . | . . . . Special . | . . . . Kinetic . | . . . . Thermal 2 | . 2 . . Explosive . | . . . . Electromagnetic . | . . . . Robot Hit Streak 1 | . 1 . . Robot Miss Streak 1 | . 1 . . Penetration Max . | . . . . Secondary Targets . | . . . . Shots Hit Robots 1 | . 1 . . Core Hits . | . . . . Critical Kills . | . . . . Critical Parts Destroyed . | . . . . Critical Strikes . | . . . . Melee Attacks . | . . . . Impact . | . . . . Slashing . | . . . . Piercing . | . . . . Sneak Attacks . | . . . . Combat Hostiles . | . . . . Follow-up Attacks . | . . . . Damage Inflicted 25 | . 17 8 . Guns 10 | . 10 . . Cannons . | . . . . Explosions . | . . . . Melee . | . . . . Ramming 15 | . 7 8 . Kinetic . | . . . . Thermal 10 | . 10 . . Explosive . | . . . . Electromagnetic . | . . . . Impact . | . . . . Slashing . | . . . . Piercing . | . . . . Highest Corruption 3 | . 3 . . Average Corruption 2 | . 2 . . Corruption Purged . | . . . . Corruption Blocked . | . . . . Effects 3 | . 3 . . Matter Fused 1 | . 1 . . Energy Discharges 1 | . 1 . . Data Loss (major) 1 | . 1 . . Overload Shots . | . . . . Overflow Damage . | . . . . Projectiles . | . . . . Explosions . | . . . . Melee . | . . . . Knockbacks . | . . . . Impact . | . . . . Kinetic . | . . . . Secondary . | . . . . Self-Inflicted Damage . | . . . . Shots . | . . . . Rammed . | . . . . Targets Rammed 9 | . 4 5 . Kicked 9 | . 4 5 . Crushed . | . . . . Highest Temperature 18 | . 18 6 2 Average Temperature 8 | . 12 6 2 Received Heat Transfer 525 | . 156 207 162 Siege Activations . | . . . . Robots Corrupted . | . . . . Combat Hostiles . | . . . . Parts Fried . | . . . . Impact Corruptions . | . . . . Robots Melted . | . . . . Combat Hostiles . | . . . . Parts Melted . | . . . . Heat Transferred 25 | . 25 . . Parts Sabotaged . | . . . . Parts Stolen . | . . . . Parts Stripped . | . . . . Power Chain Reactions . | . . . . Missiles Intercepted . | . . . . Alert | -11 -10 -9 -9 ------- Run | Jun Mat Mat Sto Peak Influence 35 | . 33 35 34 Initial 12 | . . . 12 Average 14 | . 17 10 15 Maximum Alert Level . | . . . . Low Security (%) 100 | 100 100 100 100 Level 1 . | . . . . Level 2 . | . . . . Level 3 . | . . . . Level 4 . | . . . . Level 5 . | . . . . High Security . | . . . . Max Security . | . . . . Squads Dispatched 1 | . 1 . . Investigation . | . . . . Extermination . | . . . . Reinforcement 1 | . 1 . . Assault . | . . . . Garrison . | . . . . Intercept . | . . . . Searches Triggered . | . . . . Construction Impeded . | . . . . Haulers Reinforced . | . . . . Active Scanning Responses . | . . . . Cargo Convoy Interrupts . | . . . . Stealth | -11 -10 -9 -9 --------- Run | Jun Mat Mat Sto Distress Signals 2 | . 1 1 . Communications Jammed . | . . . . Distress Signals . | . . . . Times Spotted 18 | . 7 6 5 Peak Tracking Total 5 | . 5 5 5 Tactical Retreats . | . . . . Traps | -11 -10 -9 -9 ------- Run | Jun Mat Mat Sto Traps Triggered 2 | . 2 . . Indirectly . | . . . . Trap Hack Attempts . | . . . . Triggered . | . . . . Disarmed . | . . . . Reprogrammed . | . . . . Reused . | . . . . Traps Extracted . | . . . . Installed . | . . . . Triggered . | . . . . Machines | -11 -10 -9 -9 ---------- Run | Jun Mat Mat Sto Machines Disabled . | . . . . Max in Single Turn . | . . . . Machines Repaired . | . . . . Machines Sabotaged . | . . . . Overloaded Fab Kills . | . . . . Hacking | -11 -10 -9 -9 --------- Run | Jun Mat Mat Sto Machines Accessed 9 | . 4 1 4 Terminals 8 | . 3 1 4 Fabricators . | . . . . Repair Stations . | . . . . Recycling Units 1 | . 1 . . Scanalyzers . | . . . . Garrison Access . | . . . . Total Hacks 16 | . 8 1 7 Successful 5 | . 4 . 1 Failed 11 | . 4 1 6 Catastrophic 5 | . 2 1 2 Database Lockouts . | . . . . Manual 13 | . 7 1 5 Terminals 15 | . 7 1 7 Fabricators . | . . . . Repair Stations . | . . . . Recycling Units 1 | . 1 . . Scanalyzers . | . . . . Garrison Access . | . . . . Terminal Hacks 4 | . 3 . 1 Part Schematic 1 | . 1 . . Prototype ID Bank 1 | . 1 . . Open Door 1 | . . . 1 Hauler Manifests 1 | . 1 . . Fabricator Hacks . | . . . . Repair Station Hacks . | . . . . Recycling Unit Hacks 1 | . 1 . . Report Inventory 1 | . 1 . . Scanalyzer . | . . . . Garrison Access Hacks . | . . . . Unauthorized Hacks . | . . . . Terminals . | . . . . Fabricators . | . . . . Repair Stations . | . . . . Recycling Units . | . . . . Scanalyzers . | . . . . Garrison Access . | . . . . Data Cores Recovered . | . . . . Used . | . . . . Hacking Detections 9 | . 4 1 4 Full Trace Events . | . . . . Feedback Events . | . . . . Feedback Blocked . | . . . . Robot Schematics Acquired . | . . . . Robots Built . | . . . . Authchips . | . . . . Time . | . . . . Total Robot Build Rating . | . . . . Part Schematics Acquired 1 | . 1 . . Parts Built . | . . . . Authchips . | . . . . Time . | . . . . Total Part Build Rating . | . . . . Parts Repaired . | . . . . Time . | . . . . Parts Recycled . | . . . . Recycled Matter . | . . . . Retrieved Matter . | . . . . Retrieved Components . | . . . . Parts Scanalyzed . | . . . . Part Schematics Acquired . | . . . . Parts Damaged . | . . . . Bothacking | -11 -10 -9 -9 ------------ Run | Jun Mat Mat Sto Used RIF Installer . | . . . . Robots Hacked . | . . . . Non-combat . | . . . . Combat . | . . . . Robot Hacks Applied . | . . . . Relay Couplers Released . | . . . . Fabnet Peak Effective % . | . . . . Robots Rewired . | . . . . Allies Hacked . | . . . . Hacks Repelled . | . . . . Allies | -11 -10 -9 -9 -------- Run | Jun Mat Mat Sto Total Allies . | . . . . Largest Group . | . . . . Highest-Rated Group . | . . . . Highest-Rated Ally . | . . . . Total Orders . | . . . . Ally Attacks . | . . . . Total Damage . | . . . . Kills . | . . . . Allies Corrupted . | . . . . Allies Melted . | . . . . Intel | -11 -10 -9 -9 ------- Run | Jun Mat Mat Sto Robot Analysis Total . | . . . . Derelict Logs Recovered . | . . . . Drone Launches . | . . . . Drone Recoveries . | . . . . Exploration | -11 -10 -9 -9 ------------- Run | Jun Mat Mat Sto Turns Passed 932 | 87 446 126 273 Spaces Moved 745 | 59 363 101 222 Core 40 | 22 . . 18 Treads . | . . . . Legs 697 | 29 363 101 204 Wheels 8 | 8 . . . Hover . | . . . . Flight . | . . . . Fastest Speed 50 | 50 120 120 50 Average Speed 119 | 122 120 120 117 Slowest Speed 200 | 200 120 120 190 Overloaded Moves . | . . . . Propulsion Burnouts . | . . . . Robots Hopped . | . . . . Cave-ins Triggered . | . . . . Exploration Rate (%) 23 | 5 49 12 29 Regions Visited 3 Branch Regions 1 Pre-discovered Areas . | . . . . Known Exits Taken . | . . . . Unknown Exits Taken 3 | 1 1 1 . Scrap Searched . | . . . . Spaces Dug . | . . . . Terrain Destroyed . | . . . . Melee . | . . . . Projectile . | . . . . AOE . | . . . . Terrain Rammed . | . . . . Walls Destroyed . | . . . . Machines Disabled . | . . . . Actions | -11 -10 -9 -9 --------- Run | Jun Mat Mat Sto Total 780 | 70 370 105 235 Wait 2 | . . . 2 Move 743 | 58 362 101 222 Hop . | . . . . Pick Up 8 | 4 3 . 1 Fast Attach 10 | 7 . . 3 Attach 1 | . . . 1 Detach 2 | 1 . . 1 Swap 1 | . . . 1 Drop 4 | . . . 4 Fire 1 | . 1 . . Melee . | . . . . Ram . | . . . . Kick 8 | . 4 4 . Crush . | . . . . Escape Stasis . | . . . . Rewire . | . . . . Trap . | . . . . Miscellaneous . | . . . . Route ------- -11/Junkyard -10/Materials -9/Materials -9/Storage History --------- Turn | Location | Event 22 | -11/Junkyard | Discovered new exit (range 16) 88 | -11/Junkyard | Entered Materials 317 | -10/Materials | Build established: Mutant 519 | -10/Materials | Discovered new exit (range 9) 534 | -10/Materials | Entered another Materials area 534 | -9/Materials | Evolved 2 slots: Propulsion x2 648 | -9/Materials | Discovered new exit (range 7) 660 | -9/Materials | Entered Storage 680 | -9/Storage | Lost 3 parts (1p1n1w) 881 | -9/Storage | Core integrity fell below 50% 925 | -9/Storage | Core integrity fell below 20% 933 | -9/Storage | Destroyed by G-47 Trooper with Particle Gun Last Messages --------------- 00833_ Acquired Prototype Engine. 00833_ Identified Hvy. Ion Engine. 00837_ Acquired Prototype Engine. 00837_ Identified Cld. Ion Engine. 00844_ Connecting with Door Terminal... 00848_ Dropped Lgt. Cannon. 00885_ Holding Depot disabled. 00909_ G-34 Mercenary destroyed. 00913_ Lgt. Ion Engine destroyed. 00915_ Aluminum Leg destroyed. 00916_ Dropped Sml. Storage Unit. 00917_ Dropped Lgt. Treads. 00919_ K-01 Serf cleans the Terminal. 00921_ Connecting with Terminal... 00924_ Acquired Cld. Ion Engine. 00924_ G-34 Mercenary suffers critical hit (Destroy). 00925_ K-01 Serf collects debris. 00927_ Acquired Hvy. Ion Engine. 00929_ K-01 Serf collects debris. 00929_ Critical hit (Burn: +37). Map ----- +----------------------------------------------------+ | | | | | | | ?????????###############???????????? | | ?????????# #???????????# | | ?????????# """"" #????????????# | | ?????????# """"" #????????????# | | ?????????# """"" #???????????## | | ?????????# #???????????#T | | ?????????###/###+################### | | ???????????# | | ???????????# | | ???????????# | | ???????????# ! """" ########### | | ???????????# % """ #???????### | | ???????????# =a"""" #???????#** | | ???????????# g """" #???????#** | | ???????????# """" #???????### | | ???????????# #?????????? | | ???????????# g #?????????? | | ???????????# #?????????? | | ???????????# #?????????? | | ??????????## #?????#???? | | ??????????# # #???? | | ???????#### ?? | | ???????" /@ ] = w T ???? | | ??? # ! ="""T""" ?? | | ??#!!!!"??# ########## #???? | | ??###?????#######??????????????????? | | ???????????????????????????????????? | | ???????????????????????????????????? | | ???????????????????????????????????? | | ???????????????????????????????????? | | ???????????????????????????????????? | | ???????????????????????????????????? | | ???????????????????????????????????? | | ???????????????????????????????????? | | ???????????????????????????????????? | | ???????????????????????????????????? | | ???????????????????????????????????? | | ???????????????????????????????????? | | ???????????????????????????????????? | | ???????????????????????????????????? | | ???????????????????????????????????? | | ???????????????????????????????????? | | ???????????????????????????????????? | | ???????????????????????????????????? | | ???????????????????????????????????? | | ???????????????????????????????????? | | ???????????????????????????????????? | +----------------------------------------------------+ Best States ------------- Heat Dissipation 28 Energy Generation 14 Energy Capacity 280 Matter Stores 155 Matter Capacity 300 Sight Range 16 Terrain Scan Density 10 Evasion (%) 55 Item Schematics ----------------- Flight Unit | -10/Materials | Hacked Robot Schematics ------------------ None Fabricated ------------ Nothing Alien Tech Used ----------------- None Achievements -------------- None Challenges ------------ None Game ------ Seed SniperPowerFlamer Manual? 0 Play Time 00:17:26 Cumulative 25.6 hours Start 2023.11.02 @ 22:21:34 End 2023.11.02 @ 22:35:58 Sessions 1 Manual Loads 0 Difficulty Rogue Special Mode None Game No. 41 Rogue 41 Adventurer 0 Explorer 0 Win Type - Total 0 Types 0/0/0/0/0/0/0/0/0 Lore% 20 Gallery% 34 Achievement% 23 Wizard Run 0 Options --------- ASCII 0 Keyboard 1 Movement Numpad Keybinds 0 Fullscreen 1 Font 18/TerminusBold Map View 76x50 Tactical HUD 1 Map Filters NONE Filters NONE Steam 1 RUN: f3d97a8b-868f-4b34-a266-d755594f2239